Cogmind - Beta 10.1 @@@ ROGUE MODE // 2020.10.29 @ 19:33:06 Player: Thinzy Result: Destroyed by S-10 Pest with Light Assault Rifle Performance ------------- Evolutions (1) 500 Regions Visited (3) 600 Robots Destroyed (22) 110 Value Destroyed (561) 561 Prototype IDs (0) 0 Alien Tech Used (0) 0 Bonus (0) 0 TOTAL SCORE: 1771 Bonus ------- None Cogmind --------- Core Integrity 0/400 Matter 124/300 Energy 96/100 System Corruption 0% Temperature Cool (2) Movement Walking (120) Location -9/Materials Parts ------- > --- POWER (2) -------- (None) > --- PROPULSION (2) --- Aluminum Leg Aluminum Leg > --- UTILITY (3) ------ Power Shielding > --- WEAPON (2) ------- (None) > --- INVENTORY (4) ---- (None) Peak State ------------ > --- POWER ------------ Ion Engine > --- PROPULSION ------- Wheel Wheel > --- UTILITY ---------- Visual Processing Unit Power Shielding > --- WEAPON ----------- Medium Laser Small Laser > --- INVENTORY -------- Grenade Launcher Grenade Launcher [Rating: 8] Favorites ----------- Power Light Ion Engine Engine Light Ion Engine Propulsion Wheel Leg Aluminum Leg Wheel Wheel Utility Power Shielding Device Heat Sink Processor Visual Processing Unit Protection Power Shielding Weapon Small Laser Energy Gun Small Laser Launcher Grenade Launcher Impact Weapon Hammer Build | -11 -10 -10 -9 ------- Run | Scr Mat Min Mat Slots Evolved 2 | . . . 2 Power 1 | . . . 1 Propulsion . | . . . . Utility 1 | . . . 1 Weapon . | . . . . Parts Attached 28 | 5 11 5 7 Power 6 | 1 2 2 1 Engine 6 | 1 2 2 1 Core . | . . . . Reactor . | . . . . Propulsion 4 | 2 . . 2 Treads . | . . . . Leg 2 | . . . 2 Wheel 2 | 2 . . . Hover . | . . . . Flight . | . . . . Utility 4 | . 4 . . Device 1 | . 1 . . Storage . | . . . . Processor 1 | . 1 . . Hackware . | . . . . Protection 2 | . 2 . . Artifact . | . . . . Weapon 14 | 2 5 3 4 Energy Gun 5 | 2 2 1 . Energy Cannon . | . . . . Ballistic Gun . | . . . . Ballistic Cannon . | . . . . Launcher 8 | . 3 2 3 Special Weapon . | . . . . Impact Weapon 1 | . . . 1 Slashing Weapon . | . . . . Piercing Weapon . | . . . . Special Melee Weapon . | . . . . Unidentified Prototypes . | . . . . Parts Lost 10 | . . 3 7 Power 3 | . . 1 2 Propulsion 2 | . . 1 1 Utility 1 | . . . 1 Weapon 4 | . . 1 3 Highest Loss Streak 5 | . . 2 5 Average Slot Usage (%) 75 | . 87 76 41 Engine 11 | . 13 11 5 Wheel 17 | . 28 14 4 Device 9 | . 2 14 6 Processor 4 | . 12 . . Protection 9 | . 2 14 11 Energy Gun 12 | . 23 8 . Launcher 9 | . 3 14 4 Naked Turns . | . . . . Heaviest Build 12 | 6 12 11 9 Greatest Support 20 | 20 20 10 20 Greatest Overweight (x) 2 | . . 1 2 Average Overweight (x) . | . . . . Largest Inventory Capacity 4 | 4 4 4 4 Average Capacity 4 | 4 4 4 4 Most Carried 4 | 2 4 3 2 Average Carried . | . 1 1 . Final Capacity 4 | 4 4 4 4 Final Carried 2 | . 2 1 . Class Distribution -------------------- 100% | Mutant Dominant Class ---------------- Mutant | -10/Materials Mutant | -10/Mines Mutant | -9/Materials Resources | -11 -10 -10 -9 ----------- Run | Scr Mat Min Mat Matter Collected 556 | 250 106 140 60 Remotely . | . . . . Salvage Created 520 | 41 119 166 194 Parts 32 | 1 15 10 6 Haulers Intercepted . | . . . . Recyclers Shooed . | . . . . Parts Field Recycled . | . . . . Retrieved Matter . | . . . . Parts Self-Destructed . | . . . . Prevented . | . . . . Kills | -11 -10 -10 -9 ------- Run | Scr Mat Min Mat Combat Hostiles Destroyed 17 | 1 6 5 5 Guns 3 | 1 1 1 . AOE 13 | . 5 4 4 Classes Destroyed 7 | 1 3 1 2 Worker 2 | . 1 1 . Recycler 2 | . . 1 1 Watcher 1 | . 1 . . Swarmer 6 | . 3 3 . Grunt 9 | 1 3 2 3 Duelist 1 | . . . 1 Sentry 1 | . . . 1 Best Kill Streak 5 | 1 3 3 5 Combat Bots Only 4 | 1 3 3 4 Max Kills in Single Turn 3 | 1 2 3 1 Gunslinging . | . . . . Exploded 3 | . 1 3 1 Melee . | . . . . Uniques/NPCs Destroyed . | . . . . Combat | -11 -10 -10 -9 -------- Run | Scr Mat Min Mat Damage Taken 1225 | 79 51 341 754 Core 486 | 11 . 71 404 Absorbed by Shields . | . . . . Core Remaining (%) 81 | 95 . 67 . Volleys Fired 62 | 6 25 21 10 Largest 2 | 2 2 1 1 Hottest 90 | 90 90 50 33 Shots Fired 87 | 12 44 21 10 Gun 58 | 12 34 12 . Cannon . | . . . . Launcher 29 | . 10 9 10 Special . | . . . . Kinetic . | . . . . Thermal 58 | 12 34 12 . Explosive 29 | . 10 9 10 Electromagnetic . | . . . . Robot Hit Streak 7 | 5 3 7 4 Robot Miss Streak 3 | 1 2 3 1 Penetration Max . | . . . . Secondary Targets . | . . . . Shots Hit Robots 33 | 8 5 10 10 Core Hits 33 | 2 10 12 9 Critical Hits . | . . . . Critical Kills . | . . . . Critical Parts Destroyed . | . . . . Melee Attacks 5 | . . . 5 Impact 5 | . . . 5 Slashing . | . . . . Piercing . | . . . . Sneak Attacks . | . . . . Combat Hostiles . | . . . . Follow-up Attacks . | . . . . Damage Inflicted 1220 | 84 318 348 470 Guns 235 | 84 37 114 . Cannons . | . . . . Explosions 913 | . 281 222 410 Melee 60 | . . . 60 Ramming 12 | . . 12 . Kinetic . | . . . . Thermal 235 | 84 37 114 . Explosive 913 | . 281 222 410 Electromagnetic . | . . . . Impact 60 | . . . 60 Slashing . | . . . . Piercing . | . . . . Highest Corruption 2 | . . 2 . Average Corruption 2 | . . 2 . Corruption Purged . | . . . . Overload Shots . | . . . . Overflow Damage 13 | . . . 13 Projectiles . | . . . . Explosions 4 | . . . 4 Melee 9 | . . . 9 Knockbacks . | . . . . Impact . | . . . . Kinetic . | . . . . Secondary . | . . . . Self-Inflicted Damage 236 | . . 92 144 Shots 6 | . . 2 4 Rammed 1 | . . 1 . Targets Rammed 1 | . . 1 . Kicked . | . . . . Crushed . | . . . . Highest Temperature 300 | 176 300 30 3 Average Temperature 91 | 85 103 19 3 Received Heat Transfer 282 | 42 18 99 123 Siege Activations . | . . . . Robots Corrupted . | . . . . Combat Hostiles . | . . . . Parts Fried . | . . . . Impact Corruptions 1 | . . . 1 Robots Melted . | . . . . Combat Hostiles . | . . . . Parts Melted 1 | . . 1 . Heat Transferred 632 | 223 111 298 . Parts Sabotaged . | . . . . Parts Stolen . | . . . . Parts Stripped . | . . . . Power Chain Reactions . | . . . . Missiles Intercepted . | . . . . Alert | -11 -10 -10 -9 ------- Run | Scr Mat Min Mat Peak Influence 202 | 20 202 118 193 Initial 78 | . . 78 33 Average 35 | 3 79 82 137 Maximum Alert Level 1 | . 1 . . Low Security (%) 99 | 100 96 100 100 Level 1 . | . 3 . . Level 2 . | . . . . Level 3 . | . . . . Level 4 . | . . . . Level 5 . | . . . . High Security . | . . . . Max Security . | . . . . Squads Dispatched 2 | . 1 . 1 Investigation 2 | . 1 . 1 Extermination . | . . . . Reinforcement . | . . . . Assault . | . . . . Garrison . | . . . . Intercept . | . . . . Construction Impeded . | . . . . Haulers Reinforced . | . . . . Stealth | -11 -10 -10 -9 --------- Run | Scr Mat Min Mat Distress Signals . | . . . . Communications Jammed . | . . . . Distress Signals . | . . . . Times Spotted 25 | 1 8 5 11 Peak Tracking Total 5 | 1 3 3 5 Tactical Retreats . | . . . . Traps | -11 -10 -10 -9 ------- Run | Scr Mat Min Mat Traps Triggered . | . . . . Indirectly . | . . . . Trap Hack Attempts . | . . . . Triggered . | . . . . Disarmed . | . . . . Reprogrammed . | . . . . Reused . | . . . . Traps Extracted . | . . . . Installed . | . . . . Triggered . | . . . . Machines | -11 -10 -10 -9 ---------- Run | Scr Mat Min Mat Machines Disabled 6 | . 1 1 4 Max in Single Turn 2 | . 1 1 2 Machines Sabotaged . | . . . . Garrisons Compromised . | . . . . Overloaded Fab Kills . | . . . . Fab Network Shutdowns . | . . . . Hacking | -11 -10 -10 -9 --------- Run | Scr Mat Min Mat Machines Accessed 3 | . 2 . 1 Terminals 3 | . 2 . 1 Fabricators . | . . . . Repair Stations . | . . . . Recycling Units . | . . . . Scanalyzers . | . . . . Garrison Access . | . . . . Total Hacks 10 | . 7 . 3 Successful 6 | . 3 . 3 Failed 4 | . 4 . . Catastrophic . | . . . . Database Lockouts . | . . . . Manual 2 | . 2 . . Terminals 10 | . 7 . 3 Fabricators . | . . . . Repair Stations . | . . . . Recycling Units . | . . . . Scanalyzers . | . . . . Garrison Access . | . . . . Terminal Hacks 6 | . 3 . 3 Record 1 | . . . 1 Branch Access Points 1 | . 1 . . Alert Level 1 | . . . 1 Dispatch Records 1 | . . . 1 Investigation Status 1 | . 1 . . Zone Layout 1 | . 1 . . Fabricator Hacks . | . . . . Repair Station Hacks . | . . . . Recycling Unit Hacks . | . . . . Scanalyzer . | . . . . Garrison Access Hacks . | . . . . Unauthorized Hacks . | . . . . Terminals . | . . . . Fabricators . | . . . . Repair Stations . | . . . . Recycling Units . | . . . . Scanalyzers . | . . . . Garrison Access . | . . . . Data Cores Recovered . | . . . . Used . | . . . . Hacking Detections 3 | . 2 . 1 Full Trace Events 3 | . 2 . 1 Feedback Events . | . . . . Feedback Blocked . | . . . . Robot Schematics Acquired . | . . . . Robots Built . | . . . . Matter . | . . . . Time . | . . . . Total Robot Build Rating . | . . . . Part Schematics Acquired . | . . . . Parts Built . | . . . . Matter . | . . . . Time . | . . . . Total Part Build Rating . | . . . . Parts Repaired . | . . . . Time . | . . . . Parts Recycled . | . . . . Recycled Matter . | . . . . Retrieved Matter . | . . . . Retrieved Components . | . . . . Parts Scanalyzed . | . . . . Part Schematics Acquired . | . . . . Parts Damaged . | . . . . Bothacking | -11 -10 -10 -9 ------------ Run | Scr Mat Min Mat Used RIF Installer . | . . . . Robots Hacked . | . . . . Non-combat . | . . . . Combat . | . . . . Robot Hacks Applied . | . . . . Relay Couplers Released . | . . . . Robots Rewired . | . . . . Allies Hacked . | . . . . Hacks Repelled . | . . . . Allies | -11 -10 -10 -9 -------- Run | Scr Mat Min Mat Total Allies . | . . . . Largest Group . | . . . . Highest-Rated Group . | . . . . Highest-Rated Ally . | . . . . Total Orders . | . . . . Ally Attacks . | . . . . Total Damage . | . . . . Kills . | . . . . Allies Corrupted . | . . . . Allies Melted . | . . . . Intel | -11 -10 -10 -9 ------- Run | Scr Mat Min Mat Robot Analysis Total . | . . . . Derelict Logs Recovered 1 | . . 1 . Drone Launches . | . . . . Drone Recoveries . | . . . . Exploration | -11 -10 -10 -9 ------------- Run | Scr Mat Min Mat Turns Passed 3032 | 1872 389 625 146 Spaces Moved 1456 | 349 323 649 135 Core 94 | 23 . . 71 Treads . | . . . . Legs 19 | . . . 19 Wheels 1343 | 326 323 649 45 Hover . | . . . . Flight . | . . . . Fastest Speed 50 | 50 80 80 50 Average Speed 82 | 78 80 86 75 Slowest Speed 150 | 80 80 90 150 Overloaded Moves . | . . . . Propulsion Burnouts . | . . . . Robots Hopped . | . . . . Cave-ins Triggered 1 | . . 1 . Exploration Rate (%) 45 | 26 57 81 16 Regions Visited 3 Branch Regions 1 Pre-discovered Areas . | . . . . Known Exits Taken 1 | . 1 . . Unknown Exits Taken 2 | 1 . 1 . Scrap Searched 2 | . . 2 . Spaces Dug 68 | . 6 62 . Terrain Destroyed 230 | . 63 107 60 Melee . | . . . . Projectile . | . . . . AOE 230 | . 63 107 60 Terrain Rammed . | . . . . Walls Destroyed . | . . . . Machines Disabled . | . . . . Actions | -11 -10 -10 -9 --------- Run | Scr Mat Min Mat Total 3206 | 1936 413 694 163 Wait 1620 | 1572 39 9 . Move 1452 | 348 322 647 135 Hop . | . . . . Pick Up 20 | 5 7 4 4 Fast Attach . | . . . . Attach 28 | 5 11 5 7 Detach 10 | . 6 2 2 Swap . | . . . . Drop 7 | . 3 4 . Fire 62 | 6 25 21 10 Melee 5 | . . . 5 Ram 1 | . . 1 . Kick . | . . . . Crush . | . . . . Escape Stasis 1 | . . 1 . Rewire . | . . . . Trap . | . . . . Miscellaneous . | . . . . Route ------- -11/Scrapyard -10/Materials (discovered 3 exits: *Mat x2 / *Min) -10/Mines (discovered 2 exits: *Mat x2) -9/Materials History --------- Turn | Location | Event 2 | -11/Scrapyard | Met Revision 17 53 | -11/Scrapyard | Discovered new exit (range 8) 1873 | -11/Scrapyard | Entered Materials 1874 | -10/Materials | Build established: Mutant 1904 | -10/Materials | Identified exit to Mines 2047 | -10/Materials | Discovered new exit (range 10) 2167 | -10/Materials | Discovered new exit (range 17) 2262 | -10/Materials | Entered Mines 2272 | -10/Mines | Met a Derelict bent on vengeance 2382 | -10/Mines | Discovered new exit (range 15) 2482 | -10/Mines | Discovered new exit (range 10) 2543 | -10/Mines | Received a Rocket Launcher from a helpful Derelict 2578 | -10/Mines | Learned Materials machine intel 2694 | -10/Mines | Crushed by falling debris 2887 | -10/Mines | Entered Materials 2887 | -9/Materials | Evolved 2 slots: Power x1, Utility x1 2888 | -9/Materials | Loaded intel: 65 machine locations 2966 | -9/Materials | Core integrity fell below 50% 2971 | -9/Materials | Core integrity fell below 20% 3006 | -9/Materials | Lost 5 parts (1p1n1u2w) 3033 | -9/Materials | Destroyed by S-10 Pest with Light Assault Rifle Last Messages --------------- Rocket Launcher destroyed. Destroyed Imp. Ion Engine. L-31 Rogue system corrupted by crushing effect. L-31 Rogue system terminally corrupted. Heat Sink destroyed. Acquired 10 matter. K-01 Serf collects debris. The unstable cave ceiling collapses. Acquired 23 matter. Acquired 27 matter. Acquired Ion Engine. Acquired Aluminum Leg. The unstable cave ceiling collapses. Acquired Aluminum Leg. The unstable cave ceiling collapses. Ion Engine destroyed. U-05 Engineer builds a Wall. Hammer destroyed. The unstable cave ceiling collapses. U-05 Engineer builds a Wall. Map ----- +----------------------------------------------------+ | ????????????????????????????T????????????????????? | | ?????????""??????????????????????????????????????? | | ?????????T"???"""????????????????????????????????? | | ?????????""???"""???????????T"???????????????????? | | ??????????????"""????????????"???????????????????? | | ?????????????????????????????????????????????????? | | ????????????????????????????????????????????T????? | | ??????"""????????????????????????????????????????? | | ??????"""????????????????????????????????????????? | | ??????"""????????????????????????????????????????? | | ???????????????????????? ??????????????????????? | | ??????"""?????????""""?? #??"""????????????????? | | ??????"""?????????""""?? #??"""????????????????? | | ??????"""?????????""""?# #??"""????????????????? | | ???????????????????????# #?????????????????????? | | ???????????????????????+ +?????????????????????? | | ????????????????????!??#w #?########????????????? | | ?????????????########### ## ] ?????????????? | | ?????????????# #u % ??????????????? | | ?????????????# """ # / ??????????????? | | ?????????????# """ % ????????????????? | | ?????? ??????# """" % """ ???????????????? | | ????""" ?????# # """ !!?????????????? | | ????""" ?????# """ % # """ !! ????????????? | | #???""" ?????# """" # ????????????????? | | # ? ???### "" " ## @ ## #####??????????????? | | + """ ?### # ss s " #???????????? | | # """ ## # /### """????????????## | | # """ # # " ???????????# | | # # # # "" #??????????# | | # " #??????????# | | # ! ???????????# | | ??##### [ # # #??????????# | | ##????### = ## # ## #??????????# | | ###### ! #?##########??????????# | | # # #?#######?????????????# | | ##### ### # #?# ################ | | # # # ###?# # ### | | # ######???# # T | | + """ #????????# ##### | | #### """ #????????# #???# ################ | | ???# """ #????????# #???#######??????????????? | | ???# #????????? #????????????????????????? | | ???########?????????#####????????????????????????? | | ?????????????????????????????????????????????????? | | | | | | | | | | | +----------------------------------------------------+ Best States ------------- Heat Dissipation 38 Energy Generation 10 Energy Capacity 250 Matter Stores 300 Matter Capacity 300 Sight Range 18 Terrain Scan Density 10 Power Shielding 33 Evasion (%) 50 Item Schematics ----------------- None Robot Schematics ------------------ None Fabricated ------------ Nothing Alien Tech Used ----------------- None Achievements -------------- Let's See Who's Tougher Remodeling Unlikely Earthworm Challenges ------------ None Game ------ Seed ProtonVortexArmor Manual? 0 Play Time 00:28:46 Cumulative 1.9 hours Start 2020.10.29 @ 19:01:34 End 2020.10.29 @ 19:33:06 Sessions 1 Manual Loads 0 Difficulty Rogue Special Mode None Game No. 2 Rogue 2 Adventurer 0 Explorer 0 Win Type - Total 0 Types 0/0/0/0/0/0/0/0/0 Lore% 0 Gallery% 2 Achievement% 4 Wizard Run 0 Options --------- ASCII 1 Keyboard 0 Movement Mouse Keybinds 0 Fullscreen 1 Font 18/Terminus Map View 76x50 Tactical HUD 0 Map Filters NONE Filters NONE Steam 1 RUN: a1c1e770-ae4d-456f-81d3-18d9cffed0f5